Cogmind - Beta 13 @@@ ROGUE MODE // 2024.04.30 @ 21:58:40 Player: satan5 Result: Destroyed by AI-37U(R) with Subdweller Laser Performance ------------- Evolutions (0) 0 Regions Visited (2) 400 Robots Destroyed (25) 125 Value Destroyed (599) 599 Prototype IDs (1) 20 Alien Tech Used (0) 0 Bonus (0) 0 TOTAL SCORE: 1144 Bonus ------- None Cogmind --------- Core Integrity 0/250 Matter 284/300 Energy 125/125 System Corruption 0% Temperature Cool (6) Movement Core (550) Ox10 Location -10/Subcaves Parts ------- > --- POWER (1) -------- Light Ion Engine > --- PROPULSION (2) --- (None) > --- UTILITY (2) ------ Large Storage Unit Improved Terrain Scanner > --- WEAPON (2) ------- Particle Cannon Subdweller Machine Gun > --- INVENTORY (15) --- Subdweller Monowheel Improved Heat Sink Cooling System Subdweller Optics Authchip [R/Combat] Authchip [R/Combat] Authchip [Propulsion] Particle Cannon Particle Cannon Particle Cannon Assault Rifle Maul Peak State ------------ > --- POWER ------------ Ion Engine > --- PROPULSION ------- Light Treads Light Treads > --- UTILITY ---------- Cooling System Large Storage Unit > --- WEAPON ----------- Improved EM Shotgun Particle Cannon > --- INVENTORY -------- Light Ion Engine Light Treads Heat Sink Terrain Scanner Improved Terrain Scanner Authchip [R/Combat] Authchip [R/Combat] Authchip [Propulsion] Improved EM Shotgun Particle Cannon Particle Cannon Particle Cannon Assault Rifle Maul [Rating: 14] Favorites ----------- Power Ion Engine Engine Ion Engine Propulsion Light Treads Treads Light Treads Utility Large Storage Unit Device Cooling System Storage Large Storage Unit Weapon Particle Cannon Energy Gun Subdweller Laser Energy Cannon Particle Cannon Ballistic Gun Subdweller Machine Gun Impact Weapon Hammer Build | -11 -10 -10 ------- Run | Yrd Mat Sub Slots Evolved . | . . . Power . | . . . Propulsion . | . . . Utility . | . . . Weapon . | . . . Parts Attached 27 | 6 10 11 Power 2 | . 1 1 Engine 2 | . 1 1 Core . | . . . Reactor . | . . . Propulsion 3 | 2 . 1 Treads 3 | 2 . 1 Leg . | . . . Wheel . | . . . Hover . | . . . Flight . | . . . Utility 5 | 1 2 2 Device 3 | . 1 2 Storage 2 | 1 1 . Processor . | . . . Hackware . | . . . Protection . | . . . Artifact . | . . . Weapon 17 | 3 7 7 Energy Gun 3 | 1 1 1 Energy Cannon 6 | . 4 2 Ballistic Gun 4 | 2 . 2 Ballistic Cannon . | . . . Launcher . | . . . Special Weapon . | . . . Impact Weapon 4 | . 2 2 Slashing Weapon . | . . . Piercing Weapon . | . . . Special Melee Weapon . | . . . Unidentified Prototypes 1 | . 1 . Parts Lost 4 | . . 4 Power 1 | . . 1 Propulsion 3 | . . 3 Utility . | . . . Weapon . | . . . Highest Loss Streak 3 | . . 3 To Critical Strikes 1 | . . 1 Average Slot Usage (%) 97 | . 97 96 Engine 13 | . 12 13 Treads 27 | . 28 25 Device 13 | . 12 14 Storage 14 | . 14 14 Energy Cannon 22 | . 25 16 Ballistic Gun 2 | . . 7 Impact Weapon 1 | . 1 1 Naked Turns . | . . . Heaviest Build 35 | 8 35 35 Greatest Support 40 | 40 40 40 Greatest Overweight (x) 10 | . . 10 Average Overweight (x) . | . . . Largest Inventory Capacity 15 | 8 15 15 Average Capacity 13 | 7 13 15 Most Carried 15 | 5 14 15 Average Carried 11 | 2 11 13 Final Capacity 15 | 8 15 15 Final Carried 13 | 4 13 12 Class Distribution -------------------- 96% | Mutant 3% | Scavenger-Mutant Dominant Class ---------------- Mutant | -10/Materials Mutant | -10/Subcaves Resources | -11 -10 -10 ----------- Run | Yrd Mat Sub Matter Collected 530 | 235 147 148 Remotely . | . . . Salvage Created 723 | 41 454 228 Parts 60 | 9 32 19 Haulers Intercepted 2 | . 2 . Recyclers Shooed 1 | . 1 . Parts Field Recycled . | . . . Retrieved Matter . | . . . Parts Self-Destructed 4 | . . 4 Prevented . | . . . Kills | -11 -10 -10 ------- Run | Yrd Mat Sub Combat Hostiles Destroyed 17 | . 11 6 Guns 2 | . . 2 Cannons 15 | . 11 4 Classes Destroyed 7 | 1 5 1 Tunneler 2 | 2 . . Hauler 2 | . 2 . Operator 3 | . 3 . Watcher 1 | . 1 . Swarmer 5 | . 5 . Grunt 6 | . 6 . Subdweller 6 | . . 6 Best Kill Streak 5 | 1 5 2 Combat Bots Only 5 | . 5 2 Max Kills in Single Turn 1 | 1 1 1 Gunslinging . | . . . Exploded . | . . . Melee . | . . . Uniques/NPCs Destroyed . | . . . Combat | -11 -10 -10 -------- Run | Yrd Mat Sub Hostile Shots Fired 88 | . 54 34 Missed 24 | . 17 7 Damage Taken 971 | . 333 638 Core 268 | . 62 206 Absorbed by Shields . | . . . Core Remaining (%) 100 | 100 . . Volleys Fired 81 | 8 35 38 Largest 2 | 2 2 2 Hottest 136 | 40 136 136 Shots Fired 151 | 16 70 65 Gun 51 | 16 . 35 Cannon 100 | . 70 30 Launcher . | . . . Special . | . . . Kinetic 45 | 16 . 29 Thermal 106 | . 70 36 Explosive . | . . . Electromagnetic . | . . . Robot Hit Streak 21 | 8 10 21 Robot Miss Streak 5 | 1 5 3 Penetration Max . | . . . Secondary Targets . | . . . Shots Hit Robots 95 | 11 47 37 Core Hits 32 | 5 16 11 Critical Kills . | . . . Critical Parts Destroyed . | . . . Critical Strikes . | . . . Melee Attacks 12 | . 10 2 Impact 12 | . 10 2 Slashing . | . . . Piercing . | . . . Sneak Attacks . | . . . Combat Hostiles . | . . . Follow-up Attacks . | . . . Damage Inflicted 1829 | 102 988 739 Guns 475 | 102 . 373 Cannons 1290 | . 924 366 Explosions . | . . . Melee 64 | . 64 . Ramming . | . . . Kinetic 386 | 102 . 284 Thermal 1379 | . 924 455 Explosive . | . . . Electromagnetic . | . . . Impact 64 | . 64 . Slashing . | . . . Piercing . | . . . Highest Corruption . | . . . Average Corruption . | . . . Corruption Purged . | . . . Corruption Blocked . | . . . Overload Shots . | . . . Overflow Damage 30 | . 30 . Projectiles 23 | . 23 . Explosions . | . . . Melee 7 | . 7 . Knockbacks . | . . . Impact . | . . . Kinetic . | . . . Secondary . | . . . Self-Inflicted Damage . | . . . Shots . | . . . Rammed . | . . . Targets Rammed . | . . . Kicked . | . . . Crushed . | . . . Highest Temperature 240 | . 240 42 Average Temperature 36 | . 37 19 Received Heat Transfer 168 | . 60 108 Effects 1 | . 1 . Energy Bleed 1 | . 1 . Siege Activations . | . . . Robots Corrupted . | . . . Combat Hostiles . | . . . Parts Fried 1 | . 1 . Impact Corruptions 1 | . 1 . Robots Melted . | . . . Combat Hostiles . | . . . Parts Melted 8 | . 5 3 Heat Transferred 2431 | . 1665 766 Parts Sabotaged . | . . . Parts Stolen . | . . . Parts Stripped . | . . . Power Chain Reactions . | . . . Alert | -11 -10 -10 ------- Run | Yrd Mat Sub Peak Influence 221 | 10 221 . Initial 6 | . 6 . Average 67 | 4 74 . Maximum Alert Level 1 | . 1 . Low Security (%) 88 | 100 87 . Level 1 11 | . 12 . Level 2 . | . . . Level 3 . | . . . Level 4 . | . . . Level 5 . | . . . High Security . | . . . Max Security . | . . . Squads Dispatched 3 | . 3 . Investigation 1 | . 1 . Extermination . | . . . Reinforcement 2 | . 2 . Assault . | . . . Garrison . | . . . Intercept . | . . . Searches Triggered . | . . . Construction Impeded . | . . . Haulers Reinforced . | . . . Active Scanning Responses . | . . . Cargo Convoy Interrupts . | . . . Stealth | -11 -10 -10 --------- Run | Yrd Mat Sub Distress Signals 1 | . 1 . Communications Jammed . | . . . Distress Signals . | . . . Times Spotted 25 | . 18 7 Peak Tracking Total 4 | . 4 2 Tactical Retreats . | . . . Traps | -11 -10 -10 ------- Run | Yrd Mat Sub Traps Triggered . | . . . Indirectly . | . . . Trap Hack Attempts . | . . . Triggered . | . . . Disarmed . | . . . Reprogrammed . | . . . Reused . | . . . Traps Extracted . | . . . Installed . | . . . Triggered . | . . . Machines | -11 -10 -10 ---------- Run | Yrd Mat Sub Machines Disabled 1 | . 1 . Max in Single Turn 1 | . 1 . Machines Repaired . | . . . Machines Dismantled . | . . . Machines Sabotaged . | . . . Overloaded Fab Kills . | . . . Hacking | -11 -10 -10 --------- Run | Yrd Mat Sub Machines Accessed 6 | . 6 . Terminals 6 | . 6 . Fabricators . | . . . Repair Stations . | . . . Recycling Units . | . . . Scanalyzers . | . . . Garrison Access . | . . . Total Hacks 21 | . 21 . Successful 11 | . 11 . Failed 10 | . 10 . Catastrophic 1 | . 1 . Database Lockouts . | . . . Manual 18 | . 18 . Terminals 21 | . 21 . Fabricators . | . . . Repair Stations . | . . . Recycling Units . | . . . Scanalyzers . | . . . Garrison Access . | . . . Terminal Hacks 4 | . 4 . Robot Analysis 1 | . 1 . Unreport Threat 2 | . 2 . Zone Layout 1 | . 1 . Fabricator Hacks . | . . . Repair Station Hacks . | . . . Recycling Unit Hacks . | . . . Scanalyzer . | . . . Garrison Access Hacks . | . . . Unauthorized Hacks 7 | . 7 . Terminals 7 | . 7 . Track 2 | . 2 . Botnet 5 | . 5 . Fabricators . | . . . Repair Stations . | . . . Recycling Units . | . . . Scanalyzers . | . . . Garrison Access . | . . . Data Cores Recovered 1 | . 1 . Used . | . . . Hacking Detections 6 | . 6 . Full Trace Events 1 | . 1 . Feedback Events . | . . . Feedback Blocked . | . . . Robot Schematics Acquired . | . . . Robots Built . | . . . Authchips . | . . . Time . | . . . Total Robot Build Rating . | . . . Part Schematics Acquired . | . . . Parts Built . | . . . Authchips . | . . . Time . | . . . Total Part Build Rating . | . . . Parts Repaired . | . . . Time . | . . . Parts Recycled . | . . . Recycled Matter . | . . . Retrieved Matter . | . . . Retrieved Components . | . . . Parts Scanalyzed . | . . . Part Schematics Acquired . | . . . Parts Damaged . | . . . Bothacking | -11 -10 -10 ------------ Run | Yrd Mat Sub Used RIF Installer . | . . . Robots Hacked . | . . . Non-combat . | . . . Combat . | . . . Robot Hacks Applied . | . . . Relay Couplers Released . | . . . Fabnet Peak Effective % . | . . . Robots Rewired . | . . . Allies Hacked . | . . . Hacks Repelled . | . . . Allies | -11 -10 -10 -------- Run | Yrd Mat Sub Total Allies . | . . . Largest Group . | . . . Highest-Rated Group . | . . . Highest-Rated Ally . | . . . Total Orders . | . . . Ally Attacks . | . . . Total Damage . | . . . Kills . | . . . Allies Corrupted . | . . . Allies Melted . | . . . Intel | -11 -10 -10 ------- Run | Yrd Mat Sub Robot Analysis Total 1 | . 1 . Derelict Logs Recovered . | . . . Drone Launches . | . . . Drone Recoveries . | . . . Exploration | -11 -10 -10 ------------- Run | Yrd Mat Sub Turns Passed 1505 | 111 962 432 Spaces Moved 661 | 55 443 163 Core 18 | 14 . 4 Treads 643 | 41 443 159 Legs . | . . . Wheels . | . . . Hover . | . . . Flight . | . . . Fastest Speed 50 | 50 160 160 Average Speed 160 | 132 160 169 Slowest Speed 550 | 160 160 550 Overloaded Moves . | . . . Propulsion Burnouts . | . . . Robots Hopped . | . . . Cave-ins Triggered . | . . . Exploration Rate (%) 34 | 4 83 17 Regions Visited 2 Branch Regions 1 Pre-discovered Areas . | . . . Known Exits Taken . | . . . Unknown Exits Taken 2 | 1 1 . Scrap Searched . | . . . Spaces Dug 14 | . 7 7 Terrain Destroyed 18 | . 7 11 Melee 9 | . 7 2 Projectile 9 | . . 9 AOE . | . . . Terrain Rammed . | . . . Walls Destroyed . | . . . Machines Disabled . | . . . Actions | -11 -10 -10 --------- Run | Yrd Mat Sub Total 935 | 80 609 246 Wait 107 | . 84 23 Move 659 | 54 442 163 Hop . | . . . Pick Up 34 | 10 19 5 Fast Attach 1 | 1 . . Attach 11 | 5 3 3 Detach . | . . . Swap 15 | . 7 8 Drop 15 | 2 9 4 Fire 81 | 8 35 38 Melee 12 | . 10 2 Ram . | . . . Kick . | . . . Crush . | . . . Escape Stasis . | . . . Rewire . | . . . Trap . | . . . Miscellaneous . | . . . Route ------- -11/Scrapyard -10/Materials (discovered 4 exits: [*Mat x2] / [*Min] / [*Sub]) -10/Subcaves History --------- Turn | Location | Event 25 | -11/Scrapyard | Discovered new exit (range 15) 112 | -11/Scrapyard | Entered Materials 305 | -10/Materials | Build established: Mutant 328 | -10/Materials | Discovered new exit (range 6) 563 | -10/Materials | Discovered new exit (range 12) 804 | -10/Materials | Discovered new exit (range 11) 1067 | -10/Materials | Discovered new exit (range 3) 1074 | -10/Materials | Entered Subcaves 1305 | -10/Subcaves | Ambushed by Subdweller buried in earth 1396 | -10/Subcaves | Core integrity fell below 50% 1474 | -10/Subcaves | Core integrity fell below 20% 1502 | -10/Subcaves | Lost 3 parts (1p2n) 1506 | -10/Subcaves | Destroyed by AI-37U(R) with Subdweller Laser Last Messages --------------- Machine Gun. 01355_ The unstable cave ceiling collapses. 01391_ Critical hit (Destroy). 01391_ Lgt. Treads destroyed. 01401_ W5-I7A(R) destroyed. 01412_ Acquired 49 matter. 01430_ Acquired 20 matter. 01448_ Ion Engine destroyed. 01449_ Sub. Laser shoots sparks and powers down. 01450_ Lgt. Treads destroyed. 01463_ 2K-3DQ(R) destroyed. 01466_ Dropped Broken Sub. Laser. 01471_ Lgt. Treads destroyed. 01475_ Sub. Optics melted. 01475_ RM-9PQ(R) destroyed. 01477_ Subatomizers dissect the Sub. Monowheel. 01489_ Acquired 17 matter. 01490_ Subatomizers dissect the Sub. Monowheel. 01500_ Acquired Sub. Monowheel. 01501_ Subatomizers dissect the Sub. Monowheel. Map ----- +----------------------------------------------------+ | ?????????????????????????????????????????????????? | | ?????????????????????????????????????????????????? | | ?????????????????????????????????????????????????? | | ?????????????????????????????????????????????????? | | ????????????? ?????????????????????????????????? | | ???????????? #????????????????????????????????? | | ????????????# ###?????????????????????????????? | | ????????????# ###???????????????????????????? | | ???????????## ##??????????????????????????? | | ???????????? #??????????????????????????? | | ???????????? #??????????????????????????? | | ???????????? #??#???????????????????????? | | ????????????? #??????????????????????????? | | ????????????? #??????????????????????????? | | ??? ?? ????? ##????? ????????????????????? | | ???? ?? ?????? #??#?#?? ? ??????????????????? | | ??????????#?#? #???#??? ????????????????????? | | ???????????#?## #??????? ????????????????????? | | ?????????###?##& " #??????? ????????????????????? | | ??? ????## ##& = #?????#? ? ???????????????????? | | ????????# & "###????? ???? ????????????????? | | ????????### #######??"##?#??????"???????????? | | ???#??????# ## # ###""#????????????????????? | | ??????????# R; ;# ###?#????????????????? | | ######????### " & ;;#### " ???????????? | | ####?### [ * @ ;;;; ;; ;#????????? | | ### " ! *; ; ;#????????? | | "" =% #????????? | | #### ; ?????????? | | #?# ;;##;; ; ; ?????????? | | # "" ##?#; "#?#;; ;;;### ??????????? | | """ " ##?# ; ##?###;####??????????????? | | """""""" #?#####" ##??#??##??#??????????????? | | ""#### #????######?#?#??#?????????????????? | | ""##?##### ##????#?????????????#???????????????? | | """#????######?##????????????????#???????????????? | | ""##?#?#??#?????????????????#?????#??????????????? | | ###???????#????????????#?#??????#???????????????? | | ##???????###?????????????????#???????????????????? | | #????#???# ##??????????#?????????????????????????? | | ?????????# ##???????????????????????????????????? | | ?????????# #???????#???????????????????????????? | | ########## ####????????????????????????????????? | | ## ## ###??????????????????????????????? | | ##?????????????????????????????? | | #?????????????????????????????? | | ### ##?????????????????????????????? | | ##?# ###??????????????????????????????? | | #??# #????###?????????????????????????? | | #??## ##????# #?????????????????????????? | +----------------------------------------------------+ Best States ------------- Heat Dissipation 47 Energy Generation 10 Energy Capacity 250 Matter Stores 300 Matter Capacity 300 Sight Range 21 Terrain Scan Range 16 Terrain Scan Density 10 Evasion (%) 50 Recoil Reduction 2 Authchip Count 3 Item Schematics ----------------- None Robot Schematics ------------------ None Fabricated ------------ Nothing Alien Tech Used ----------------- None Achievements -------------- None Challenges ------------ None Game ------ Seed MassEtherialCapacitor Manual? 0 Play Time 00:14:07 Cumulative 163.4 hours Start 2024.04.30 @ 21:47:46 End 2024.04.30 @ 21:58:40 Sessions 1 Manual Loads 0 Difficulty Rogue Special Mode None Game No. 65 Rogue 51 Adventurer 14 Explorer 0 Win Type - Total 11 Types 9/0/0/1/0/0/0/0/1 Lore% 62 Gallery% 75 Achievement% 63 Wizard Run 0 Options --------- Layout 2 ASCII 0 Keyboard 0 Movement Mouse Keybinds 0 Fullscreen 1 Font 20/SmallcapsGlow Map View 50x44 Zoom Use 0% Tactical HUD 1 Map Filters NONE Filters NONE Steam 1 RUN: 3d44b32e-88a2-4f98-bac6-422f2710ae32